{"text_format":"3","workbook":"xlsx","n_sheets":1,"sheets":["Sheet1"],"not_rendered":{"images":5,"defined_names":1},"read":"whole","date_system":"1900"}

{"sheet":"Sheet1","index":0,"n_rows":40,"n_cols":10,"rows_kept":40,"merged":[[0,0,0,9],[1,0,3,0],[1,1,3,1],[1,2,3,2],[1,3,3,3],[1,4,3,4],[1,5,1,9],[2,5,3,5],[2,6,3,6],[2,7,3,7],[2,8,3,8],[2,9,3,9],[4,1,4,2],[7,1,7,2],[18,1,18,2],[24,1,24,2],[28,1,28,2],[33,1,33,2],[38,0,38,5],[39,0,39,9]]}
["2024年“A”项目边坡工程清单报价表"]
["序号","项目名称","项目特征","单位","工程量","金额（元）",{"$nulls":3},""]
[{"$nulls":5},"全费用单价限价","合价","班组所报单价","合价","备注"]
[]
["一","填方边坡"]
[1,"挖运沟槽土石方","1.土壤类别：土石综合 \n2.挖土深度：综合\n3.开挖方式：投标人自行综合考虑\n4.对管线、构筑物、建筑物等采取的保护措施，边坡施工防护及变形观测措施：由投标人自行确定，包含在投标报价中\n5.未尽事宜满足设计及现行技术、质量验收规范要求","m3",240,17,{"$f":"E6*F6","v":4080}]
[2,"M7.5砂浆砌片石","1.部位：片石护坡 \n2.材料品种、规格：片石 \n3.砂浆强度等级 ：M7.5\n4.抹灰厚度、砂浆等级：10mm厚1：2水泥砂浆\n5.未尽事宜满足设计及现行技术、质量验收规范要求","m3",320,450,{"$f":"E7*F7","v":144000}]
["二","蜂巢格室生态护坡"]
[1,"岩质边坡护坡锚杆(成孔灌浆)","1.地层情况：各类土、岩质综合 \n2.钻孔深度：符合设计和规范要求  \n3.钻孔直径：Φ50mm\n4.浆液种类、强度等级：M30砂浆\n5.未尽事宜满足设计及现行技术、质量验收规范要求\n","m",{"$f":"3353.76+6607.15","v":9960.91},62,{"$f":"E9*F9","v":617576.42}]
[2,"14mm—16mm锚杆","1.直径： φ14mm、 φ16mm锚杆钢筋（甲供）\n2.长度：详见设计施工图\n3.锚杆类型 ：非预应力锚杆\n4.未尽事宜满足设计及现行技术、质量验收规范要求","t",14.738,1000,{"$f":"E10*F10","v":14738}]
[3,"土、石质边坡蜂窝格室","1.材料品种、规格：20cm绿色HDPE蜂巢格室、 塑料排水板\n2.部位：挖方、填方区坡面防护\n3.综合单价包含蜂巢格室和塑料排水板的安装等护坡结构的全部费用\n4.未尽事宜满足设计及现行技术、质量验收规范要求","m2",{"$f":"10796+1644","v":12440},40,{"$f":"E11*F11","v":497600}]
[4,"营养土回填","1.回填土质要求：营养土（甲供） \n2.取土运距 ：投标人自行考虑\n3.回填厚度 ：综合\n4.填方来源、运距：投标人自行考虑\n5.对管线、构筑物、建筑物等采取的保护措施，边坡施工防护及变形观测措施：由投标人自行确定，包含在投标报价中\n6.未尽事宜满足设计及现行技术、质量验收规范要求","m3",1244,25,{"$f":"E12*F12","v":31100}]
[5,"种植土回填","1.回填土质要求：种植土 \n2.取土运距 ：投标人自行考虑\n3.回填厚度 ：综合\n4.填方来源、运距：投标人自行考虑\n5.对管线、构筑物、建筑物等采取的保护措施，边坡施工防护及变形观测措施：由投标人自行确定，包含在投标报价中\n6.未尽事宜满足设计及现行技术、质量验收规范要求","m3",2044,20,40880]
[6,"回填陶粒","1.填方材料品种：陶粒\n2.密实度、粒径：5cm厚φ20~30陶粒，满足设计及规范要求\n3.回填部位：详设计\n4.回填方式:投标人自行考虑\n5.对管线、构筑物、建筑物等采取的保护措施，边坡施工防护及变形观测措施：由投标人自行确定，包含在投标报价中\n6.未尽事宜满足设计及现行技术、质量验收规范要求","m3",{"v":29,"d":"29.00"},250,7250]
[7,"土工布 250g/m2","1.材料品种、规格：250g/m 土工布 \n2.搭接方式：满足设计与规范要求\n3.未尽事宜满足设计及现行技术、质量验收规范要求","m2",550,5,2750]
[8,"MU20烧结页岩砖","1.材料：MU20烧结页岩砖\n2.砂浆规格：MU10水泥砂浆\n3.部位：路堑护坡范围内所有砖砌体\n4.未尽事宜满足设计及现行技术、质量验收规范要求\n","m3",87,620,53940]
[9,"M10水泥砂浆抹面","1.墙体类型:砖 \n2.面层厚度、砂浆配合比：2cm厚M10水泥砂浆抹面 \n3.部位：路堑护坡范围内砖砌体抹面\n4.未尽事宜满足设计及现行技术、质量验收规范要求","m2",350,28,9800]
[10,"DN50mmPVC排水管","1.材料品种：PVC排水管\n2.管径：DN50\n3.间距：2m\n4.部位：护坡范围内\n5.未尽事宜满足设计及现行技术、质量验收规范要求","m",10,17,170]
["三","截水沟"]
[1,"挖运沟槽土（石）方","1.土石类别：土石综合 \n2.挖土深度：综合\n3.开挖方式：投标人自行综合考虑\n4.场内外运距、弃土场费用：投标人自行考虑\n5.对管线、构筑物、建筑物等采取的保护措施，边坡施工防护及变形观测措施：由投标人自行确定，包含在投标报价中\n6.未尽事宜满足设计及现行技术、质量验收规范要求","m3",1056.46,17,{"$f":"E20*F20","v":17959.82}]
[2,"永久截水沟（用于永久挖方边坡）","1.断面尺寸 ：详设计\n2.材料品种、规格：Mu30片石，外漏面砂浆抹面，抹面厚度3cm \n3.砂浆强度等级：M7.5 \n4.未尽事宜满足设计及现行技术、质量验收规范要求","m",635,303,{"$f":"E21*F21","v":192405}]
[3,"永久排水沟（用于永久填方边坡）","1.断面尺寸 ：详设计\n2.材料品种、规格：Mu30片石，外漏面砂浆抹面，抹面厚度3cm \n3.砂浆强度等级：M7.5 \n4.未尽事宜满足设计及现行技术、质量验收规范要求","m",35,338,{"$f":"E22*F22","v":11830}]
[4,"临时截水沟（用于挖方临时边坡）","1.断面尺寸 ：详设计\n2.材料品种、规格：3cm厚M7.5预拌砂浆\n3.未尽事宜满足设计及现行技术、质量验收规范要求","m",64,45,{"$f":"E23*F23","v":2880}]
[5,"临时排水沟（用于填方临时边坡）","1.断面尺寸 ：详设计\n2.材料品种、规格：3cm厚M7.5预拌砂浆\n3.未尽事宜满足设计及现行技术、质量验收规范要求","m",199,51,{"$f":"E24*F24","v":10149}]
["四","桥梁锥坡护坡工程"]
[1,"C20片石混凝土挡墙","1.混凝土强度等级：C20片石混凝土，片石比例30%（混凝土甲供）\n2.混凝土运输及浇筑方式：投标人自行考虑\n3.未尽事宜满足设计及现行技术、质量验收规范要求","m3",38.96,145,{"$f":"E26*F26","v":5649.2}]
[2,"护坡六棱花砖安装","1.材料品种：六棱花砖 \n2.砂浆强度等级：M7.5\n3.未尽事宜满足设计及现行技术、质量验收规范要求","㎡",377.36,90,{"$f":"E27*F27","v":33962.4}]
[3,"挡墙模板","1.支模高度：综合、超高模板部分由投标人综合考虑在投标报价中\n2.模板类型：木模、组合钢模板、竹胶合板等综合\n3.支架材料：钢管、竹、木支架综合，断面尺寸、材质、工艺等符合设计和施工验收规范要求\n4.模板范围：挡墙模板\n5.本项目投标人应根据施工经验,现场实际情况和企业自身情况综合报价,不论采用何种支模方式均综合报价（含脚手架费用）                                                                 6.材料场内运输、转运费用已综合考虑在单价中","㎡",136.07,85,11565.95]
["五","人行道",{"$nulls":4},0]
[1,"30cm回填块片石","1.石料规格 ：片石\n2.厚度：300mm\n3.未尽事宜满足设计及现行技术、质量验收规范要求\n","m3",45,145,6525]
[2,"5cm厚C20混凝土垫层","1.混凝土种类 ：现浇混凝土（混凝土甲供）\n2.混凝土强度等级：C20\n3.模板及浇筑方式：模板投标人自行考虑\n4.未尽事宜满足设计及现行技术、质量验收规范要求","m3",{"$f":"50*3*0.05","v":7.5},60,450]
[4,"青石台阶 （含平台）1000×500×150mm","1.台阶面层规格：青石 1000×500×150mm 表面细钻(青石甲供)\n2.结合层厚度砂浆等级：综合考虑\n3.计算规则：按投影面积计算工程量                      4、未尽事宜满足设计及现行技术、质量验收规范要求\n","㎡",150,100,15000]
[5,"预埋铁件","1.材料种类：钢板、钢筋、螺栓等预埋件综合考虑（甲供）\n2.材料规格：详见设计施工图\n3.含防锈处理\n4.未尽事宜满足设计及现行技术、质量验收规范要求","t",0.5,1200,600]
["六","护坡排水",{"$nulls":4},0]
[1,"急流槽 C30","1.断面尺寸 ：500×500mm\n2.材料品种、厚度：C30混凝土 （混凝土甲供）\n3.沉降缝做法：隔2.0m或1.75m设一道沉降缝,在地质条件发生变化的地方应加设沉降缝,沉降缝缝宽20~30毫米。沉降缝在阶梯跌水构筑物基础用沥青木板嵌填,阶梯跌水构筑物侧墙外侧5cm以热沥青浸麻丝填塞,内侧以1:3水泥砂浆填塞15cm,中间嵌沥青木板。\n4.具体做法详见设计施工图\n5.混凝土运输及浇筑方式：投标人自行考虑\n6.未尽事宜满足设计及现行技术、质量验收规范要求","m3",38.7,65,2515.5]
[2,"明渠 C30  ","1.断面尺寸 ：400×400mm（混凝土甲供）\n2.材料品种、厚度：C30混凝土 \n3.混凝土运输及浇筑方式：投标人自行考虑\n4.未尽事宜满足设计及现行技术、质量验收规范要求\n","m3",31.85,65,2070.25]
[3,"急流槽模板","1.支模高度：综合\n2.模板及支架材料:由投标人根据设计文件结合自身的技术能力综合考虑\n3.本项目投标人应根据施工经验，现场实际情况和企业自身情况综合报价\n4.未尽事宜满足设计及现行技术、质量验收规范要求","㎡",213.2,70,14924]
[4,"明渠模板","1.支模高度：综合\n2.模板及支架材料:由投标人根据设计文件结合自身的技术能力综合考虑\n3.本项目投标人应根据施工经验，现场实际情况和企业自身情况综合报价\n4.未尽事宜满足设计及现行技术、质量验收规范要求","㎡",88.98,70,6228.6]
["合计",{"$nulls":5},{"$f":"SUM(G5:G38)","v":1758599.14},null,{"$f":"SUM(I5:I38)","v":0}]
["注：1、全费用综合单价，包括人工费、材料费、机械费、管理费、利润、除安全文明施工费外的总价措施费、大型机械进出场费及进出场外的其他单价措施费、降排水费、规费、销项增值税和附加税等费用；以上工程量均为暂估量，最终以实际施工工程量结算且合同单价均不予以调整。\n2.现场安全环保文明施工管理要求：（1）由公司统一发放印有“兴绿园林”字样和LOGO的安全帽和反光背心，班组按实名制领取，使用完后交回项目部，否则按采购费用扣款，其余参照合同附件中安全环保管理协议执行。（2）现场雾炮机由甲方提供，投标单位需安排人员管理使用，人工费、水费、油费及管理费用综合考虑到投标报价中，不单独计取。（3）防尘网由甲方提供，投标单位安排人员进行覆盖、回收、现场转移等，人工费综合考虑到投标报价中，不单独计取。                                                                                                                                                 3.现场施工的环保设施设备、对于临边及孔洞的防护、进出车辆进行冲洗管理、投标单位自己操作人员的劳保防护用品、临时用水用电（水电接口由甲方提供至红线内，水电费用投标人自行考虑，若水电未及时安装需由承包商用水车供水以满足土石方施工环保降尘要求）、必要安全措施等由投标单位承担；施工内容的检测（复检）检测费用和送样检测等费用由投标单位承担；机械进、出场费用由投标单位综合考虑，包含在投标报价中。\n4.工程涉及到的专项施工方案的编制及专家论证由投标人负责。"]